[Event "44th Chess Olympiad Open 2022"]
[Site "Chennai"]
[Date "2022.08.08"]
[Round "10.35"]
[White "Xie, Felix"]
[Black "Stoyanov, Tsvetan"]
[Result "0-1"]
[WhiteElo "2224"]
[BlackElo "2450"]
[Annotator "RC"]
[PlyCount "72"]
[EventDate "2022.??.??"]
[TimeControl "60"]

1. d4 {[%emt 0:00:05]} d5 {[%emt 0:00:16]} 2. c4 {[%emt 0:00:09]} e6 {[%emt 0:
00:00]} 3. Nf3 {[%emt 0:00:20]} Nf6 {[%emt 0:00:10]} 4. g3 {[%emt 0:00:06]} Be7
{[%emt 0:00:13]} 5. Bg2 {[%emt 0:00:17]} O-O {[%emt 0:00:07]} 6. O-O {[%emt 0:
00:00]} c6 {[%emt 0:00:06]} 7. Nbd2 {[%emt 0:03:29]} b6 {[%emt 0:00:15]} 8. Qc2
{[%emt 0:01:09]} Bb7 {[%emt 0:00:19]} 9. e4 {[%emt 0:02:26]} Na6 {[%emt 0:00:
00]} 10. e5 {[%emt 0:16:13]} Nd7 {[%emt 0:00:52]} 11. b3 {[%emt 0:03:52]} Rc8 {
[%emt 0:02:37]} 12. Bb2 {[%emt 0:04:05]} c5 {[%emt 0:04:07]} 13. a3 {[%emt 0:
00:00]} Qc7 {[%emt 0:23:55]} 14. cxd5 {[%emt 0:08:13]} Bxd5 {[%emt 0:00:23]}
15. Rfc1 {[%emt 0:05:19]} Qb7 {[%emt 0:01:50]} 16. Qd3 {[%emt 0:05:01]} b5 {
[%emt 0:13:22]} 17. dxc5 {[%emt 0:03:51]} Naxc5 {[%emt 0:03:54]} 18. Qe3 {
[%emt 0:00:36]} a5 {[%emt 0:00:58]} 19. Ne1 {[%emt 0:02:36]} Rfd8 {[%emt 0:00:
00]} 20. Rc2 {[%emt 0:04:04]} Nb6 {[%emt 0:05:54]} 21. Rac1 {[%emt 0:01:20]}
Bxg2 {[%emt 0:00:39]} 22. Nxg2 {[%emt 0:00:05]} Nd3 {[%emt 0:00:13]} 23. Rxc8 {
[%emt 0:07:54]} Nxc8 {[%emt 0:00:07]} 24. Rc2 {[%emt 0:00:05]} Nxb2 {[%emt 0:
00:00]} 25. Rxb2 {[%emt 0:01:43]} Bxa3 {[%emt 0:00:02]} 26. Ra2 {[%emt 0:00:41]
} Bb4 {[%emt 0:00:30]} 27. Nf4 {[%emt 0:00:25]} Ne7 {[%emt 0:02:07]} 28. Nh5 {
[%emt 0:02:56]} h6 {[%emt 0:02:48]} 29. Ne4 {[%emt 0:05:56]} Rd1+ {[%emt 0:00:
00]} 30. Kg2 {[%emt 0:00:03]} Re1 {[%emt 0:00:05]} 31. Re2 {[%emt 0:00:02]} Nd5
{[%emt 0:00:30]} 32. Qf3 {[%emt 0:04:55]} Rxe2 {[%emt 0:00:05]} 33. Nef6+ {
[%emt 0:00:43]} gxf6 {[%emt 0:00:59]} 34. Qg4+ {[%emt 0:00:04]} Kf8 {[%emt 0:
00:00]} 35. Qg7+ {[%emt 0:00:04]} Ke7 {[%emt 0:00:29]} 36. exf6+ {[%emt 0:00:
00]} Nxf6+ {[%emt 0:00:06]} 0-1

[Event "44th Chess Olympiad Open 2022"]
[Site "Chennai"]
[Date "2022.08.08"]
[Round "10.35"]
[White "Stark, John"]
[Black "Georgiev, Todor"]
[Result "1/2-1/2"]
[WhiteElo "2028"]
[BlackElo "2272"]
[Annotator "NA RC"]
[PlyCount "64"]
[EventDate "2022.??.??"]
[TimeControl "60"]

1. d4 {[%emt 0:00:02]} g6 {[%emt 0:03:37]} 2. c4 {[%emt 0:00:02]} Bg7 {[%emt 0:
00:00]} 3. Nc3 {[%emt 0:00:10]} d6 {[%emt 0:00:20]} 4. e4 {[%emt 0:00:42]} e5 {
[%emt 0:00:46]} 5. Nf3 {[%emt 0:00:53]} Bg4 {[%emt 0:06:25]} 6. dxe5 {[%emt 0:
00:00]} Bxf3 {[%emt 0:12:56]} 7. Qxf3 {[%emt 0:00:24]} dxe5 {[%emt 0:01:14]} 8.
h4 {[%emt 0:01:38]} Nc6 {[%emt 0:07:30]} 9. Bd3 {[%emt 0:14:22]} Nd4 {[%emt 0:
00:00]} 10. Qh3 {[%emt 0:05:54]} Ne6 {[%emt 0:06:30]} 11. O-O {[%emt 0:07:23]}
c6 {[%emt 0:04:37]} 12. Rd1 {[%emt 0:04:18]} Qe7 {[%emt 0:07:16]} 13. Be3 {
[%emt 0:08:19]} Bh6 {[%emt 0:04:31]} 14. Nd5 {[%emt 0:14:18]} cxd5 {[%emt 0:00:
00]} 15. cxd5 {[%emt 0:00:01]} Nf4 {[%emt 0:00:16]} 16. Bxf4 {[%emt 0:03:21]}
Bxf4 {[%emt 0:00:20]} 17. Bb5+ {[%emt 0:05:10]} Kf8 {[%emt 0:00:10]} 18. d6 {
[%emt 0:00:53]} Qd8 {[%emt 0:00:29]} 19. Qc3 {[%emt 0:06:51]} Rc8 {[%emt 0:00:
00]} 20. Qa3 {[%emt 0:00:04]} Kg7 {[%emt 0:00:48]} 21. d7 {[%emt 0:07:08]} Rc7
{[%emt 0:06:31]} 22. g3 {[%emt 0:00:49]} Bh6 {[%emt 0:02:02]} 23. Qd6 {[%emt 0:
00:00]} Nf6 {[%emt 0:00:08]} 24. Qxe5 {[%emt 0:02:13]} a6 {[%emt 0:01:34]} 25.
g4 {[%emt 0:00:08]} Bf4 {[%emt 0:01:12]} 26. Qxf4 {[%emt 0:02:50]} axb5 {
[%emt 0:00:05]} 27. Qe5 {[%emt 0:01:11]} Rxd7 {[%emt 0:01:28]} 28. Rxd7 {
[%emt 0:00:31]} Qxd7 {[%emt 0:00:02]} 29. g5 {[%emt 0:00:41]} Qg4+ {[%emt 0:00:
00]} 30. Kf1 {[%emt 0:01:53]} Qf3 {[%emt 0:04:01]} 31. gxf6+ {[%emt 0:02:59]}
Qxf6 {[%emt 0:00:01]} 32. Qxf6+ {[%emt 0:00:55]} Kxf6 {[%emt 0:00:08]} 1/2-1/2

[Event "44th Chess Olympiad Open 2022"]
[Site "Chennai"]
[Date "2022.08.08"]
[Round "10.36"]
[White "Reimanis, Ritvars"]
[Black "Brahami, Lamine"]
[Result "1/2-1/2"]
[WhiteElo "2377"]
[BlackElo "2189"]
[Annotator "RC"]
[PlyCount "41"]
[EventDate "2022.??.??"]
[TimeControl "60"]

1. d4 {[%emt 0:00:06]} Nf6 {[%emt 0:00:12]} 2. c4 {[%emt 0:00:07]} g6 {[%emt 0:
00:00]} 3. Nc3 {[%emt 0:00:40]} Bg7 {[%emt 0:00:27]} 4. e4 {[%emt 0:00:13]} d6
{[%emt 0:00:10]} 5. Be2 {[%emt 0:00:49]} O-O {[%emt 0:00:32]} 6. Nf3 {[%emt 0:
00:00]} e5 {[%emt 0:01:01]} 7. O-O {[%emt 0:01:22]} exd4 {[%emt 0:02:44]} 8.
Nxd4 {[%emt 0:00:12]} Re8 {[%emt 0:00:19]} 9. f3 {[%emt 0:01:47]} c6 {[%emt 0:
00:00]} 10. Nc2 {[%emt 0:17:51]} Na6 {[%emt 0:08:08]} 11. Be3 {[%emt 0:09:17]}
Nh5 {[%emt 0:11:35]} 12. g4 {[%emt 0:03:48]} Be5 {[%emt 0:16:55]} 13. gxh5 {
[%emt 0:38:58]} Bxh2+ {[%emt 0:00:00]} 14. Kxh2 {[%emt 0:11:29]} Qh4+ {[%emt 0:
00:00]} 15. Kg1 {[%emt 0:00:15]} Qg3+ {[%emt 0:00:00]} 16. Kh1 {[%emt 0:00:04]}
Qh4+ {[%emt 0:00:04]} 17. Kg1 {[%emt 0:00:05]} Qg3+ {[%emt 0:00:00]} 18. Kh1 {
[%emt 0:00:04]} Qh4+ {[%emt 0:00:00]} 19. Kg1 {[%emt 0:00:05]} Qg3+ {[%emt 0:
00:00]} 20. Kh1 {[%emt 0:00:02]} Qh4+ {[%emt 0:00:00]} 21. Kg1 {[%emt 0:00:06]}
1/2-1/2

[Event "44th Chess Olympiad Open 2022"]
[Site "Chennai"]
[Date "2022.08.08"]
[Round "10.36"]
[White "Nassr, Ali"]
[Black "Kantans, Toms"]
[Result "0-1"]
[WhiteElo "2263"]
[BlackElo "2486"]
[Annotator "RC"]
[PlyCount "132"]
[EventDate "2022.??.??"]
[TimeControl "60"]

1. d4 {[%emt 0:00:04]} Nf6 {[%emt 0:00:08]} 2. Bf4 {[%emt 0:00:22]} g6 {
[%emt 0:00:23]} 3. Nf3 {[%emt 0:00:15]} Bg7 {[%emt 0:00:07]} 4. e3 {[%emt 0:00:
00]} d6 {[%emt 0:00:07]} 5. h3 {[%emt 0:00:26]} O-O {[%emt 0:00:08]} 6. Be2 {
[%emt 0:00:29]} c5 {[%emt 0:01:12]} 7. c3 {[%emt 0:00:41]} cxd4 {[%emt 0:00:43]
} 8. exd4 {[%emt 0:00:58]} Qb6 {[%emt 0:00:07]} 9. Qb3 {[%emt 0:01:58]} Qc7 {
[%emt 0:00:07]} 10. O-O {[%emt 0:01:54]} Nc6 {[%emt 0:00:07]} 11. Nbd2 {
[%emt 0:03:15]} e5 {[%emt 0:05:02]} 12. dxe5 {[%emt 0:01:49]} dxe5 {[%emt 0:00:
00]} 13. Bh2 {[%emt 0:01:31]} Be6 {[%emt 0:00:14]} 14. Qa4 {[%emt 0:00:32]} a6
{[%emt 0:00:31]} 15. Ne4 {[%emt 0:09:51]} Nxe4 {[%emt 0:00:36]} 16. Qxe4 {
[%emt 0:00:07]} f5 {[%emt 0:00:19]} 17. Qc2 {[%emt 0:00:54]} Bf6 {[%emt 0:00:
00]} 18. Rfe1 {[%emt 0:03:46]} Rac8 {[%emt 0:05:40]} 19. Qa4 {[%emt 0:07:14]}
Qf7 {[%emt 0:05:12]} 20. Nd2 {[%emt 0:07:35]} Rfd8 {[%emt 0:14:21]} 21. Rad1 {
[%emt 0:03:44]} e4 {[%emt 0:07:20]} 22. Bc4 {[%emt 0:03:28]} Bxc4 {[%emt 0:00:
00]} 23. Qxc4 {[%emt 0:00:14]} b5 {[%emt 0:00:05]} 24. Qxf7+ {[%emt 0:17:37]}
Kxf7 {[%emt 0:00:36]} 25. Bf4 {[%emt 0:00:47]} g5 {[%emt 0:06:27]} 26. Bh2 {
[%emt 0:01:36]} b4 {[%emt 0:10:30]} 27. Nc4 {[%emt 0:01:57]} bxc3 {[%emt 0:00:
00]} 28. bxc3 {[%emt 0:06:38]} Bxc3 {[%emt 0:00:23]} 29. Rf1 {[%emt 0:03:16]}
Bb4 {[%emt 0:03:22]} 30. Rb1 {[%emt 0:05:21]} f4 {[%emt 0:08:55]} 31. g3 {
[%emt 0:00:54]} Rd3 {[%emt 0:11:49]} 32. gxf4 {[%emt 0:02:02]} gxf4 {[%emt 0:
00:00]} 33. Bxf4 {[%emt 0:01:33]} Rxh3 {[%emt 0:01:37]} 34. Bg3 {[%emt 0:02:44]
} Rh6 {[%emt 0:02:28]} 35. Rfc1 {[%emt 0:04:56]} Rg8 {[%emt 0:07:25]} 36. Kg2 {
[%emt 0:02:40]} Re6 {[%emt 0:01:13]} 37. a3 {[%emt 0:02:08]} Be7 {[%emt 0:00:
00]} 38. Rb6 {[%emt 0:01:16]} Nd4 {[%emt 0:01:58]} 39. Rxe6 {[%emt 0:00:47]}
Nxe6 {[%emt 0:00:29]} 40. Ne5+ {[%emt 0:00:39]} Kf6 {[%emt 0:00:07]} 41. Nd7+ {
[%emt 0:03:52]} Kf5 {[%emt 0:00:59]} 42. Rc6 {[%emt 0:13:33]} a5 {[%emt 0:00:
00]} 43. Ra6 {[%emt 0:00:46]} Bd8 {[%emt 0:00:06]} 44. Rc6 {[%emt 0:01:48]} Bc7
{[%emt 0:09:57]} 45. Nc5 {[%emt 0:01:19]} Bxg3 {[%emt 0:00:08]} 46. fxg3 {
[%emt 0:00:15]} Nf4+ {[%emt 0:01:34]} 47. Kf2 {[%emt 0:02:25]} e3+ {[%emt 0:00:
00]} 48. Kxe3 {[%emt 0:00:21]} Rxg3+ {[%emt 0:00:06]} 49. Kd2 {[%emt 0:00:41]}
h5 {[%emt 0:00:43]} 50. Rh6 {[%emt 0:03:43]} Rxa3 {[%emt 0:00:27]} 51. Ke1 {
[%emt 0:01:30]} Rc3 {[%emt 0:02:11]} 52. Na4 {[%emt 0:00:22]} Rc4 {[%emt 0:00:
00]} 53. Nb2 {[%emt 0:00:11]} Rb4 {[%emt 0:01:07]} 54. Nd1 {[%emt 0:00:22]} a4
{[%emt 0:02:55]} 55. Ra6 {[%emt 0:00:30]} h4 {[%emt 0:01:15]} 56. Kf2 {[%emt 0:
00:00]} Nd5 {[%emt 0:07:04]} 57. Ra5 {[%emt 0:04:20]} Ke4 {[%emt 0:00:22]} 58.
Ra8 {[%emt 0:00:31]} h3 {[%emt 0:04:47]} 59. Kg3 {[%emt 0:00:43]} Rb3+ {
[%emt 0:00:06]} 60. Kh2 {[%emt 0:00:07]} Nb6 {[%emt 0:01:00]} 61. Re8+ {
[%emt 0:00:58]} Kd4 {[%emt 0:00:12]} 62. Rd8+ {[%emt 0:00:27]} Kc4 {[%emt 0:00:
00]} 63. Re8 {[%emt 0:01:27]} a3 {[%emt 0:00:19]} 64. Re2 {[%emt 0:00:31]} Nd5
{[%emt 0:00:38]} 65. Rc2+ {[%emt 0:00:46]} Kb4 {[%emt 0:00:47]} 66. Rd2 {
[%emt 0:00:14]} Ne3 {[%emt 0:00:39]} 0-1

[Event "44th Chess Olympiad Open 2022"]
[Site "Chennai"]
[Date "2022.08.08"]
[Round "10.36"]
[White "Djabri, Massinas"]
[Black "Golubovskis, Maksims"]
[Result "1-0"]
[WhiteElo "2206"]
[BlackElo "2219"]
[Annotator "RC"]
[PlyCount "113"]
[EventDate "2022.??.??"]
[TimeControl "60"]

1. d4 {[%emt 0:00:05]} Nf6 {[%emt 0:00:11]} 2. c4 {[%emt 0:00:21]} e6 {[%emt 0:
00:00]} 3. Nf3 {[%emt 0:00:05]} b6 {[%emt 0:00:51]} 4. g3 {[%emt 0:00:32]} Ba6
{[%emt 0:00:07]} 5. Qa4 {[%emt 0:00:30]} c5 {[%emt 0:00:47]} 6. d5 {[%emt 0:00:
00]} exd5 {[%emt 0:02:29]} 7. cxd5 {[%emt 0:00:05]} b5 {[%emt 0:08:22]} 8. Qd1
{[%emt 0:11:03]} Bb7 {[%emt 0:04:47]} 9. Bg5 {[%emt 0:01:33]} h6 {[%emt 0:00:
00]} 10. Bxf6 {[%emt 0:01:29]} Qxf6 {[%emt 0:00:02]} 11. Qd2 {[%emt 0:00:28]}
Be7 {[%emt 0:07:57]} 12. Nc3 {[%emt 0:14:18]} b4 {[%emt 0:01:03]} 13. Nd1 {
[%emt 0:13:59]} O-O {[%emt 0:04:55]} 14. Ne3 {[%emt 0:01:31]} d6 {[%emt 0:00:
00]} 15. Bh3 {[%emt 0:05:29]} Bc8 {[%emt 0:11:15]} 16. Bxc8 {[%emt 0:02:58]}
Rxc8 {[%emt 0:00:02]} 17. Nc4 {[%emt 0:01:00]} Nd7 {[%emt 0:00:45]} 18. O-O {
[%emt 0:06:18]} Bf8 {[%emt 0:01:42]} 19. Qd3 {[%emt 0:02:09]} g6 {[%emt 0:00:
00]} 20. a4 {[%emt 0:02:31]} Bg7 {[%emt 0:07:48]} 21. a5 {[%emt 0:01:41]} Qe7 {
[%emt 0:02:31]} 22. e4 {[%emt 0:04:38]} Re8 {[%emt 0:02:55]} 23. Rae1 {[%emt 0:
00:00]} Rac8 {[%emt 0:03:50]} 24. Kg2 {[%emt 0:01:08]} g5 {[%emt 0:01:33]} 25.
h3 {[%emt 0:01:19]} Kh8 {[%emt 0:01:30]} 26. e5 {[%emt 0:10:26]} dxe5 {[%emt 0:
00:00]} 27. Nfd2 {[%emt 0:02:01]} Nf6 {[%emt 0:04:03]} 28. Ne4 {[%emt 0:01:19]}
Nxe4 {[%emt 0:01:30]} 29. Qxe4 {[%emt 0:00:06]} Qd7 {[%emt 0:01:36]} 30. g4 {
[%emt 0:00:41]} Rcd8 {[%emt 0:01:00]} 31. Rd1 {[%emt 0:00:22]} f5 {[%emt 0:00:
00]} 32. gxf5 {[%emt 0:00:31]} b3 {[%emt 0:02:44]} 33. d6 {[%emt 0:02:08]} Rf8
{[%emt 0:01:01]} 34. Nxe5 {[%emt 0:03:00]} Bxe5 {[%emt 0:00:11]} 35. Qxe5+ {
[%emt 0:00:07]} Kh7 {[%emt 0:00:03]} 36. Rd5 {[%emt 0:01:01]} Rde8 {[%emt 0:00:
00]} 37. Qg3 {[%emt 0:01:12]} Rxf5 {[%emt 0:01:26]} 38. Qd3 {[%emt 0:00:21]}
Kg6 {[%emt 0:00:26]} 39. Rc1 {[%emt 0:03:19]} Kf6 {[%emt 0:01:32]} 40. Rcxc5 {
[%emt 0:00:52]} Rxd5 {[%emt 0:00:29]} 41. Qxd5 {[%emt 0:04:47]} Qe6 {[%emt 0:
00:00]} 42. Qd4+ {[%emt 0:11:09]} Kg6 {[%emt 0:00:06]} 43. Rc7 {[%emt 0:00:30]}
Rd8 {[%emt 0:02:25]} 44. d7 {[%emt 0:06:29]} a6 {[%emt 0:00:45]} 45. Kh2 {
[%emt 0:00:20]} Qf6 {[%emt 0:00:42]} 46. Qe4+ {[%emt 0:05:32]} Kg7 {[%emt 0:00:
00]} 47. Kg2 {[%emt 0:00:14]} Qf7 {[%emt 0:00:47]} 48. Qe5+ {[%emt 0:01:39]}
Qf6 {[%emt 0:00:26]} 49. Qe8 {[%emt 0:00:45]} Qf8 {[%emt 0:00:06]} 50. Rc8 {
[%emt 0:01:27]} Qf5 {[%emt 0:00:21]} 51. Rxd8 {[%emt 0:01:05]} Qd5+ {[%emt 0:
00:00]} 52. f3 {[%emt 0:01:22]} Qd2+ {[%emt 0:00:09]} 53. Kf1 {[%emt 0:00:08]}
Qd1+ {[%emt 0:00:51]} 54. Kf2 {[%emt 0:00:14]} Qd2+ {[%emt 0:00:51]} 55. Qe2 {
[%emt 0:00:08]} Qxa5 {[%emt 0:00:18]} 56. Rc8 {[%emt 0:00:40]} Qb6+ {[%emt 0:
00:00]} 57. Qe3 {[%emt 0:00:10]} 1-0

[Event "44th Chess Olympiad Open 2022"]
[Site "Chennai"]
[Date "2022.08.08"]
[Round "10.36"]
[White "Ungurs, Edgars"]
[Black "Araoun, Saadi"]
[Result "1-0"]
[WhiteElo "2206"]
[BlackElo "2049"]
[Annotator "NA RC"]
[PlyCount "69"]
[EventDate "2022.??.??"]
[TimeControl "60"]

1. e4 {[%emt 0:00:06]} c6 {[%emt 0:00:04]} 2. d4 {[%emt 0:00:24]} d5 {[%emt 0:
00:00]} 3. exd5 {[%emt 0:00:07]} cxd5 {[%emt 0:00:07]} 4. Bd3 {[%emt 0:00:06]}
Nc6 {[%emt 0:00:07]} 5. c3 {[%emt 0:00:06]} Nf6 {[%emt 0:00:04]} 6. h3 {
[%emt 0:00:15]} e5 {[%emt 0:00:27]} 7. dxe5 {[%emt 0:00:20]} Nxe5 {[%emt 0:00:
00]} 8. Nf3 {[%emt 0:00:12]} Nxd3+ {[%emt 0:02:53]} 9. Qxd3 {[%emt 0:00:08]}
Bd6 {[%emt 0:01:30]} 10. O-O {[%emt 0:01:44]} O-O {[%emt 0:00:23]} 11. Be3 {
[%emt 0:03:41]} Re8 {[%emt 0:03:49]} 12. Rd1 {[%emt 0:07:55]} Bc7 {[%emt 0:00:
00]} 13. Na3 {[%emt 0:01:42]} a6 {[%emt 0:02:15]} 14. Nc2 {[%emt 0:07:45]} Be6
{[%emt 0:03:04]} 15. Bd4 {[%emt 0:00:30]} Qd7 {[%emt 0:00:30]} 16. Bxf6 {
[%emt 0:00:30]} gxf6 {[%emt 0:33:45]} 17. Ne3 Rad8 {[%emt 0:00:00]} 18. Qd4 {
[%emt 0:13:31]} Kg7 {[%emt 0:00:00]} 19. Rd2 {[%emt 0:06:38]} Qd6 {[%emt 0:00:
00]} 20. Qh4 {[%emt 0:07:52]} Qf4 {[%emt 0:20:32]} 21. Rd4 {[%emt 0:03:16]}
Qxh4 {[%emt 0:00:40]} 22. Rxh4 {[%emt 0:00:24]} Rd7 {[%emt 0:05:41]} 23. Rd1 {
[%emt 0:04:00]} Red8 {[%emt 0:01:30]} 24. Nd4 {[%emt 0:01:31]} Bb6 {[%emt 0:00:
00]} 25. Rd3 {[%emt 0:10:14]} Rc7 {[%emt 0:02:24]} 26. Nec2 {[%emt 0:05:58]}
Bc8 {[%emt 0:02:10]} 27. Rg3+ {[%emt 0:08:23]} Kh8 {[%emt 0:00:02]} 28. Rf4 {
[%emt 0:00:30]} Rd6 {[%emt 0:00:34]} 29. Ne3 {[%emt 0:00:50]} Re7 {[%emt 0:00:
00]} 30. Kf1 {[%emt 0:10:05]} Re4 {[%emt 0:00:21]} 31. Nef5 {[%emt 0:02:45]}
Bxf5 {[%emt 0:00:32]} 32. Nxf5 {[%emt 0:00:40]} Rd8 {[%emt 0:00:40]} 33. Nh6 {
[%emt 0:01:03]} Rf8 {[%emt 0:00:35]} 34. Rxf6 {[%emt 0:00:39]} Re6 {[%emt 0:00:
00]} 35. Nxf7+ {[%emt 0:01:40]} 1-0

[Event "44th Chess Olympiad Open 2022"]
[Site "Chennai"]
[Date "2022.08.08"]
[Round "10.37"]
[White "Rahman, Ziaur"]
[Black "Laohawirapap, Prin"]
[Result "1-0"]
[WhiteElo "2424"]
[BlackElo "2230"]
[Annotator "RC"]
[PlyCount "99"]
[EventDate "2022.??.??"]
[TimeControl "60"]

1. Nf3 {[%emt 0:00:25]} Nf6 {[%emt 0:00:06]} 2. b3 {[%emt 0:00:33]} g6 {
[%emt 0:00:33]} 3. Bb2 {[%emt 0:00:10]} Bg7 {[%emt 0:00:13]} 4. g3 {[%emt 0:00:
00]} O-O {[%emt 0:00:20]} 5. Bg2 {[%emt 0:00:26]} c5 {[%emt 0:00:17]} 6. c4 {
[%emt 0:00:15]} d6 {[%emt 0:00:11]} 7. O-O {[%emt 0:00:11]} e5 {[%emt 0:00:08]}
8. Nc3 {[%emt 0:00:27]} Nc6 {[%emt 0:00:22]} 9. d3 {[%emt 0:00:14]} h6 {
[%emt 0:01:31]} 10. Nd2 {[%emt 0:05:13]} Be6 {[%emt 0:02:48]} 11. a3 {[%emt 0:
00:00]} d5 {[%emt 0:06:03]} 12. cxd5 {[%emt 0:02:21]} Nxd5 {[%emt 0:00:12]} 13.
Rc1 {[%emt 0:00:31]} Nxc3 {[%emt 0:20:36]} 14. Bxc3 {[%emt 0:02:34]} Bd5 {
[%emt 0:04:29]} 15. b4 {[%emt 0:04:58]} cxb4 {[%emt 0:03:34]} 16. axb4 {
[%emt 0:00:08]} Bxg2 {[%emt 0:00:15]} 17. Kxg2 {[%emt 0:00:07]} Qd5+ {[%emt 0:
00:00]} 18. f3 {[%emt 0:01:49]} Rfc8 {[%emt 0:12:22]} 19. Qa4 {[%emt 0:04:36]}
Nd4 {[%emt 0:06:05]} 20. Bxd4 {[%emt 0:02:38]} Qxd4 {[%emt 0:07:30]} 21. Nc4 {
[%emt 0:02:00]} a6 {[%emt 0:00:29]} 22. Qa5 {[%emt 0:16:38]} b5 {[%emt 0:06:38]
} 23. Nb6 {[%emt 0:00:11]} Rxc1 {[%emt 0:00:04]} 24. Rxc1 {[%emt 0:01:29]} Rb8
{[%emt 0:00:06]} 25. Nc8 {[%emt 0:07:01]} Qd7 {[%emt 0:09:16]} 26. Rc7 {
[%emt 0:04:46]} Qe6 {[%emt 0:04:55]} 27. Rc6 {[%emt 0:04:32]} Qd7 {[%emt 0:00:
00]} 28. Qxa6 {[%emt 0:00:43]} Bf8 {[%emt 0:00:05]} 29. Nd6 {[%emt 0:00:41]}
Bxd6 {[%emt 0:05:04]} 30. Rxd6 {[%emt 0:00:06]} Qc7 {[%emt 0:00:08]} 31. Rc6 {
[%emt 0:00:53]} Qd7 {[%emt 0:01:29]} 32. Rc5 {[%emt 0:00:41]} Qd4 {[%emt 0:00:
00]} 33. Rxb5 {[%emt 0:00:53]} Rxb5 {[%emt 0:00:06]} 34. Qxb5 {[%emt 0:00:04]}
Qb2 {[%emt 0:00:44]} 35. d4 {[%emt 0:03:31]} Qxd4 {[%emt 0:01:02]} 36. Qc5 {
[%emt 0:03:09]} Qb2 {[%emt 0:02:31]} 37. Kf2 {[%emt 0:00:55]} Qa1 {[%emt 0:00:
00]} 38. Kg2 {[%emt 0:01:45]} Qb2 {[%emt 0:00:43]} 39. Qc4 {[%emt 0:00:14]} h5
{[%emt 0:00:10]} 40. h4 {[%emt 0:00:34]} Kg7 {[%emt 0:00:49]} 41. b5 {[%emt 0:
00:00]} f5 {[%emt 0:31:13]} 42. Kf2 {[%emt 0:00:51]} f4 {[%emt 0:00:44]} 43.
gxf4 {[%emt 0:00:54]} exf4 {[%emt 0:00:04]} 44. Qc7+ {[%emt 0:00:29]} Kg8 {
[%emt 0:00:14]} 45. Qd8+ {[%emt 0:01:16]} Kh7 {[%emt 0:00:08]} 46. b6 {[%emt 0:
00:00]} Qb4 {[%emt 0:00:15]} 47. Qc7+ {[%emt 0:01:18]} Kh6 {[%emt 0:00:11]} 48.
b7 {[%emt 0:00:52]} Qd4+ {[%emt 0:00:23]} 49. Kg2 {[%emt 0:00:16]} Qe3 {
[%emt 0:00:24]} 50. Kf1 {[%emt 0:00:17]} 1-0

[Event "44th Chess Olympiad Open 2022"]
[Site "Chennai"]
[Date "2022.08.08"]
[Round "10.37"]
[White "Kulpruethanon, Thanadon"]
[Black "Hossain, Enamul"]
[Result "1/2-1/2"]
[WhiteElo "2294"]
[BlackElo "2377"]
[Annotator "RC"]
[PlyCount "27"]
[EventDate "2022.??.??"]
[TimeControl "60"]

1. d4 {[%emt 0:00:03]} d5 {[%emt 0:00:26]} 2. c4 {[%emt 0:00:08]} c6 {[%emt 0:
00:00]} 3. cxd5 {[%emt 0:00:19]} cxd5 {[%emt 0:00:10]} 4. Nc3 {[%emt 0:00:18]}
Nf6 {[%emt 0:00:10]} 5. Bf4 {[%emt 0:00:16]} Nc6 {[%emt 0:00:22]} 6. e3 {
[%emt 0:00:42]} a6 {[%emt 0:00:14]} 7. Be2 {[%emt 0:00:34]} Bf5 {[%emt 0:00:26]
} 8. Nf3 {[%emt 0:00:24]} e6 {[%emt 0:00:22]} 9. Qb3 {[%emt 0:00:34]} Nh5 {
[%emt 0:02:42]} 10. Be5 {[%emt 0:11:34]} Na5 {[%emt 0:00:45]} 11. Qa4+ {
[%emt 0:02:59]} Nc6 {[%emt 0:00:11]} 12. Qb3 {[%emt 0:00:30]} Na5 {[%emt 0:00:
00]} 13. Qa4+ {[%emt 0:00:11]} Nc6 {[%emt 0:00:07]} 14. Qb3 {[%emt 0:14:29]}
1/2-1/2

[Event "44th Chess Olympiad Open 2022"]
[Site "Chennai"]
[Date "2022.08.08"]
[Round "10.37"]
[White "Mehdi Hasan Parag"]
[Black "Jingjang, Shin"]
[Result "1-0"]
[WhiteElo "2227"]
[BlackElo "1956"]
[Annotator "NA RC"]
[PlyCount "61"]
[EventDate "2022.??.??"]
[TimeControl "60"]

1. e4 {[%emt 0:00:13]} e6 {[%emt 0:00:26]} 2. d4 {[%emt 0:00:10]} d5 {[%emt 0:
00:00]} 3. e5 {[%emt 0:00:07]} c5 {[%emt 0:01:33]} 4. c3 {[%emt 0:00:04]} Nc6 {
[%emt 0:00:31]} 5. Nf3 {[%emt 0:00:03]} Qb6 {[%emt 0:02:25]} 6. Be2 {[%emt 0:
00:00]} Nh6 {[%emt 0:04:27]} 7. Bxh6 {[%emt 0:01:20]} Qxb2 {[%emt 0:04:10]} 8.
Bxg7 {[%emt 0:03:55]} Bxg7 {[%emt 0:00:03]} 9. Nbd2 {[%emt 0:00:19]} Qxc3 {
[%emt 0:09:29]} 10. Rc1 {[%emt 0:02:42]} Qa3 {[%emt 0:17:22]} 11. O-O {[%emt 0:
00:00]} c4 {[%emt 0:08:32]} 12. Bxc4 {[%emt 0:02:16]} dxc4 {[%emt 0:00:09]} 13.
Nxc4 {[%emt 0:00:03]} Qe7 {[%emt 0:03:11]} 14. Nd6+ {[%emt 0:01:23]} Kf8 {
[%emt 0:00:08]} 15. Nd2 {[%emt 0:04:05]} Bh6 {[%emt 0:25:30]} 16. Rc3 {[%emt 0:
00:00]} Rg8 {[%emt 0:04:26]} 17. N2e4 {[%emt 0:02:12]} Rg6 {[%emt 0:01:11]} 18.
Qh5 {[%emt 0:11:49]} Bg7 {[%emt 0:05:52]} 19. Rfc1 {[%emt 0:09:03]} Rb8 {
[%emt 0:05:56]} 20. Rf3 {[%emt 0:05:05]} Nd8 {[%emt 0:04:26]} 21. Nxc8 {
[%emt 0:00:00]} Qd7 {[%emt 0:00:17]} 22. Ncd6 {[%emt 0:00:00]} Rh6 {[%emt 0:00:
00]} 23. Qg4 {[%emt 0:03:12]} Rg6 {[%emt 0:00:00]} 24. Qh4 {[%emt 0:02:52]} Kg8
{[%emt 0:01:36]} 25. Rg3 {[%emt 0:01:13]} Nc6 {[%emt 0:00:31]} 26. Ng5 {
[%emt 0:01:44]} Rh6 {[%emt 0:00:22]} 27. Qf4 {[%emt 0:01:15]} Rf8 {[%emt 0:00:
00]} 28. h4 {[%emt 0:04:37]} f6 {[%emt 0:00:23]} 29. Nxe6 {[%emt 0:00:46]} Qxe6
{[%emt 0:00:36]} 30. Qxh6 {[%emt 0:00:06]} Qe7 {[%emt 0:00:32]} 31. Nf5 {
[%emt 0:00:13]} 1-0